fUSD/lending_fUSD_20240620
["ID","MTS","AMOUNT","RATE_DAILY","PERIOD"]
[329939256,1718848259561,-521.07,0.00013972,2]
[329939257,1718848259571,-500.0,0.00013972,2]
[329939258,1718848259581,-628.22,0.00013972,2]
[329939259,1718848259592,-521.4,0.00013972,2]
[329939260,1718848259603,-500.0,0.00013972,2]
[329939261,1718848259615,-500.0,0.00013972,2]
[329939262,1718848259917,-500.0,0.00013972,2]
[329939263,1718848259937,-500.0,0.00013972,2]
[329939264,1718848259947,-500.0,0.00013972,2]
[329939265,1718848259957,-500.0,0.00013972,2]
[329939266,1718848259966,-500.0,0.00013972,2]
[329939267,1718848259976,-500.0,0.00013972,2]
[329939268,1718848259985,-595.99,0.00013972,2]
[329939269,1718848259995,-623.67,0.00013972,2]
[329939270,1718848260005,-500.0,0.00013972,2]
[329939271,1718848260015,-500.0,0.00013972,2]
[329939272,1718848260025,-660.75,0.00013972,2]
[329939273,1718848260035,-500.0,0.00013972,2]
[329939274,1718848260045,-500.0,0.00013972,2]
[329939275,1718848260056,-651.92,0.00013972,2]
[329939276,1718848260066,-500.0,0.00013972,2]
[329939277,1718848260076,-425.0340433,0.00013972,2]
[329939278,1718848260086,-500.0,0.00013972,2]
[329939279,1718848260096,-556.77,0.00013972,2]
[329939280,1718848260106,-500.0,0.00013972,2]
[329939281,1718848260116,-500.0,0.00013972,2]
[329939282,1718848260128,-500.0,0.00013972,2]
[329939283,1718848260137,-537.33,0.00013972,2]
[329939284,1718848260147,-500.0,0.00013972,2]
[329939285,1718848260156,-500.0,0.00013972,2]
[329939286,1718848260166,-618.88,0.00013972,2]
[329939287,1718848260175,-798.77,0.00013972,2]
[329939288,1718848260184,-500.0,0.00013972,2]
[329939289,1718848260193,-500.0,0.00013972,2]
[329939290,1718848260203,-500.0,0.00013972,2]
[329939291,1718848260212,-500.0,0.00013972,2]
[329939292,1718848260222,-500.0,0.00013972,2]
[329939293,1718848260231,-500.0,0.00013972,2]
[329939294,1718848260240,-500.0,0.00013972,2]
[329939295,1718848260250,-500.0,0.00013972,2]
[329939296,1718848260259,-743.96,0.00013972,2]
[329939297,1718848260269,-500.0,0.00013972,2]
[329939298,1718848260278,-518.18,0.00013972,2]
[329939299,1718848260288,-500.0,0.00013972,2]
[329939300,1718848260299,-701.86,0.00013972,2]
[329939301,1718848260309,-546.13,0.00013972,2]
[329939302,1718848260318,-500.0,0.00013972,2]
[329939303,1718848260328,-517.36,0.00013972,2]
[329939304,1718848260337,-500.0,0.00013972,2]
[329939305,1718848260348,-733.12,0.00013972,2]
[329939306,1718848260358,-500.0,0.00013972,2]
[329939307,1718848260368,-553.84,0.00013972,2]
[329939308,1718848260378,-500.0,0.00013972,2]
[329939309,1718848260387,-1095.08,0.00013972,2]
[329939310,1718848260397,-500.0,0.00013972,2]
[329939311,1718848260407,-500.0,0.00013972,2]
[329939312,1718848260417,-500.0,0.00013972,2]
[329939313,1718848260427,-500.0,0.00013972,2]
[329939314,1718848260436,-500.0,0.00013972,2]
[329939315,1718848260445,-500.0,0.00013972,2]
[329939316,1718848260454,-563.53,0.00013972,2]
[329939317,1718848260464,-529.65,0.00013972,2]
[329939318,1718848260478,-500.0,0.00013972,2]
[329939319,1718848260488,-324.60705578,0.00013972,2]
[329939320,1718848260497,-500.0,0.00013972,2]
[329939321,1718848260506,-404.97898948,0.00013972,2]
[329939322,1718848260517,-500.0,0.00013972,2]
[329939323,1718848260526,-500.0,0.00013972,2]
[329939324,1718848260535,-500.0,0.00013972,2]
[329939325,1718848260547,-500.0,0.00013972,2]
[329939326,1718848260556,-500.0,0.00013972,2]
[329939327,1718848260566,-665.61,0.00013972,2]
[329939328,1718848260576,-657.46,0.00013972,2]
[329939329,1718848260585,-576.35,0.00013972,2]
[329939330,1718848260595,-500.0,0.00013972,2]
[329939331,1718848260606,-500.0,0.00013972,2]
[329939332,1718848260616,-500.0,0.00013972,2]
[329939333,1718848260626,-500.0,0.00013972,2]
[329939334,1718848260635,-500.0,0.00013972,2]
[329939335,1718848260645,-500.0,0.00013972,2]
[329939336,1718848260655,-1184.54,0.00013972,2]
[329939337,1718848260665,-500.0,0.00013972,2]
[329939338,1718848260675,-500.0,0.00013972,2]
[329939339,1718848260684,-500.0,0.00013972,2]
[329939340,1718848260695,-500.0,0.00013972,2]
[329939341,1718848260705,-568.83,0.00013972,2]
[329939342,1718848260716,-575.18,0.00013972,2]
[329939343,1718848260727,-500.0,0.00013972,2]
[329939344,1718848260736,-637.65,0.00013972,2]
[329939345,1718848260746,-784.78,0.00013972,2]
[329939346,1718848260756,-722.71,0.00013972,2]
[329939347,1718848260766,-500.0,0.00013972,2]
[329939348,1718848260776,-432.94833695,0.00013972,2]
[329939349,1718848260786,-640.11,0.00013972,2]
[329939350,1718848260797,-563.09,0.00013972,2]
[329939351,1718848260807,-500.0,0.00013972,2]
[329939352,1718848260817,-891.36,0.00013972,2]
[329939353,1718848260826,-500.0,0.00013972,2]
[329939354,1718848260835,-1277.32,0.00013972,2]
[329939355,1718848260844,-613.65,0.00013972,2]
[329939356,1718848260854,-952.59,0.00013972,2]
[329939357,1718848260863,-500.0,0.00013972,2]
[329939358,1718848260873,-472.39,0.00013972,2]
[329939359,1718848260882,-500.0,0.00013972,2]
[329939360,1718848260891,-560.15,0.00013972,2]
[329939361,1718848260900,-561.71,0.00013972,2]
[329939362,1718848260909,-791.33,0.00013972,2]
[329939363,1718848260919,-1002.45,0.00013972,2]
[329939364,1718848260928,-619.2,0.00013972,2]
[329939365,1718848260938,-647.93,0.00013972,2]
[329939366,1718848260947,-503.06,0.00013972,2]
[329939367,1718848260956,-500.0,0.00013972,2]
[329939368,1718848260965,-959.43,0.00013972,2]
[329939369,1718848260974,-1190.36,0.00013972,2]
[329939370,1718848260983,-514.37,0.00013972,2]
[329939371,1718848260992,-500.0,0.00013972,2]
[329939372,1718848261002,-642.06,0.00013972,2]
[329939373,1718848261011,-154.301612,0.00013972,2]
[329939374,1718848261020,-500.0,0.00013972,2]
[329939375,1718848261030,-500.0,0.00013972,2]
[329939376,1718848261039,-151.0,0.00013972,2]
[329939377,1718848261050,-949.54,0.00013972,2]
[329939378,1718848261059,-1221.25,0.00013972,2]
[329939379,1718848261068,-510.97,0.00013972,2]
[329939380,1718848261077,-905.34,0.00013972,2]
[329939381,1718848261087,-748.17,0.00013972,2]
[329939382,1718848261096,-151.0,0.00013972,2]
[329939383,1718848261106,-588.37,0.00013972,2]
[329939384,1718848261117,-680.71,0.00013972,2]
[329939385,1718848261127,-586.23,0.00013972,2]
[329939386,1718848261136,-500.0,0.00013972,2]
[329939387,1718848261146,-500.0,0.00013972,2]
[329939388,1718848261157,-1112.94,0.00013972,2]
[329939389,1718848261167,-1010.13,0.00013972,2]
[329939390,1718848261178,-500.0,0.00013972,2]
[329939391,1718848261187,-500.0,0.00013972,2]
[329939392,1718848261197,-410.96493328,0.00013972,2]
[329939393,1718848261206,-500.0,0.00013972,2]
[329939394,1718848261216,-500.0,0.00013972,2]
[329939395,1718848261225,-508.28,0.00013972,2]
[329939396,1718848261234,-500.0,0.00013972,2]
[329939397,1718848261244,-878.05,0.00013972,2]
[329939398,1718848261253,-396.7,0.00013972,2]
[329939399,1718848261262,-937.64,0.00013972,2]
[329939400,1718848261272,-500.0,0.00013972,2]
[329939401,1718848261281,-500.0,0.00013972,2]
[329939402,1718848261290,-500.0,0.00013972,2]
[329939403,1718848261302,-1288.05,0.00013972,2]
[329939404,1718848261311,-528.28,0.00013972,2]
[329939405,1718848261321,-581.55,0.00013972,2]
[329939406,1718848261330,-901.6,0.00013972,2]
[329939407,1718848261339,-673.9,0.00013972,2]
[329939408,1718848261348,-828.45,0.00013972,2]
[329939409,1718848261358,-151.0,0.00013972,2]
[329939410,1718848261367,-500.0,0.00013972,2]
[329939411,1718848261376,-500.0,0.00013972,2]
[329939412,1718848261386,-500.0,0.00013972,2]
[329939413,1718848261396,-883.58,0.00013972,2]
[329939414,1718848261405,-500.0,0.00013972,2]
[329939415,1718848261416,-151.0,0.00013972,2]
[329939416,1718848261425,-722.82,0.00013972,2]
[329939417,1718848261435,-151.500163,0.00013972,2]
[329939418,1718848261444,-500.0,0.00013972,2]
[329939419,1718848261454,-500.0,0.00013972,2]
[329939420,1718848261464,-154.835615,0.00013972,2]
[329939421,1718848261476,-151.0,0.00013972,2]
[329939422,1718848261486,-500.0,0.00013972,2]
[329939423,1718848261495,-1510.04,0.00013972,2]
[329939424,1718848261504,-500.0,0.00013972,2]
[329939425,1718848261514,-1191.81,0.00013972,2]
[329939426,1718848261523,-500.0,0.00013972,2]
[329939427,1718848261532,-538.41,0.00013972,2]
[329939428,1718848261541,-500.0,0.00013972,2]
[329939429,1718848261555,-500.0,0.00013972,2]
[329939430,1718848261565,-584.47,0.00013972,2]
[329939431,1718848261574,-986.2,0.00013972,2]
[329939432,1718848261586,-778.59,0.00013972,2]
[329939433,1718848261596,-500.0,0.00013972,2]
[329939434,1718848261605,-1088.29,0.00013972,2]
[329939435,1718848261614,-500.0,0.00013972,2]
[329939436,1718848261624,-935.74,0.00013972,2]
[329939437,1718848261633,-1246.73,0.00013972,2]
[329939438,1718848261642,-762.66,0.00013972,2]
[329939439,1718848261652,-500.0,0.00013972,2]
[329939440,1718848261661,-752.04,0.00013972,2]
[329939441,1718848261670,-2165.49,0.00013972,2]
[329939442,1718848261680,-500.0,0.00013972,2]
[329939443,1718848261690,-500.0,0.00013972,2]
[329939444,1718848261700,-1139.78,0.00013972,2]
[329939445,1718848261710,-553.37,0.00013972,2]
[329939446,1718848261719,-500.0,0.00013972,2]
[329939447,1718848261729,-1313.25,0.00013972,2]
[329939448,1718848261739,-913.64,0.00013972,2]
[329939449,1718848261748,-670.14,0.00013972,2]
[329939450,1718848261757,-618.17,0.00013972,2]
[329939451,1718848261767,-590.56,0.00013972,2]
[329939452,1718848261776,-500.0,0.00013972,2]
[329939453,1718848261786,-155.936851,0.00013972,2]
[329939454,1718848261797,-500.0,0.00013972,2]
[329939455,1718848261811,-290.982055,0.00013972,2]
[329939456,1718848261820,-812.98,0.00013972,2]
[329939457,1718848261829,-680.35,0.00013972,2]
[329939458,1718848261839,-500.0,0.00013972,2]
[329939459,1718848261848,-500.0,0.00013972,2]
[329939460,1718848261857,-979.37,0.00013972,2]
[329939461,1718848261867,-701.65,0.00013972,2]
[329939462,1718848261876,-516.86,0.00013972,2]
[329939463,1718848261885,-1233.05,0.00013972,2]
[329939464,1718848261895,-500.0,0.00013972,2]
[329939465,1718848261905,-500.0,0.00013972,2]
[329939466,1718848261914,-500.0,0.00013972,2]
[329939467,1718848261924,-576.61,0.00013972,2]
[329939468,1718848261933,-727.24,0.00013972,2]
[329939469,1718848261942,-1030.03,0.00013972,2]
[329939470,1718848261952,-1103.93,0.00013972,2]
[329939471,1718848261962,-500.0,0.00013972,2]
[329939472,1718848261971,-500.0,0.00013972,2]
[329939473,1718848261981,-151.0,0.00013972,2]
[329939474,1718848261991,-359.64453817,0.00013972,2]
[329939475,1718848262000,-595.82338258,0.00013972,2]
[329939476,1718848262010,-500.0,0.00013972,2]
[329939477,1718848262019,-500.0,0.00013972,2]
[329939478,1718848262028,-572.09,0.00013972,2]
[329939479,1718848262038,-500.0,0.00013972,2]
[329939480,1718848262049,-679.42,0.00013972,2]
[329939481,1718848262058,-719.67,0.00013972,2]
[329939482,1718848262068,-500.0,0.00013972,2]
[329939483,1718848262077,-500.0,0.00013972,2]
[329939484,1718848262087,-500.0,0.00013972,2]
[329939485,1718848262097,-640.1213821,0.00013972,2]
[329939486,1718848262106,-580.95967504,0.00013972,2]
[329939487,1718848262116,-1175.6,0.00013972,2]
[329939488,1718848262126,-1035.04,0.00013972,2]
[329939489,1718848262135,-252.62,0.00013972,2]
[329939490,1718848262144,-500.0,0.00013972,2]
[329939491,1718848262154,-835.1,0.00013972,2]
[329939492,1718848262171,-152.8412,0.00013972,2]
[329939493,1718848262184,-548.0,0.00013972,2]
[329939494,1718848262193,-500.0,0.00013972,2]
[329939495,1718848262203,-899.68,0.00013972,2]
[329939496,1718848262213,-500.0,0.00013972,2]
[329939497,1718848262222,-971.94,0.00013972,2]
[329939498,1718848262232,-416.06,0.00013972,2]
[329939499,1718848262241,-500.0,0.00013972,2]
[329939500,1718848262261,-611.07,0.00013972,2]
[329939501,1718848262271,-500.0,0.00013972,2]
[329939502,1718848262281,-1033.79,0.00013972,2]
[329939503,1718848262290,-514.93645472,0.00013972,2]
[329939504,1718848262302,-500.0,0.00013972,2]
[329939505,1718848262313,-688.74,0.00013972,2]
[329939506,1718848262322,-1471.49,0.00013972,2]
[329939507,1718848262332,-279.61935212,0.00013972,2]
[329939508,1718848262341,-586.95,0.00013972,2]
[329939509,1718848262350,-815.6,0.00013972,2]
[329939510,1718848262359,-500.0,0.00013972,2]
[329939511,1718848262368,-1535.55,0.00013972,2]
[329939512,1718848262377,-500.0,0.00013972,2]
[329939513,1718848262386,-500.0,0.00013972,2]
[329939514,1718848262395,-802.36,0.00013972,2]
[329939515,1718848262404,-919.48,0.00013972,2]
[329939516,1718848262414,-1302.75,0.00013972,2]
[329939517,1718848262423,-862.02,0.00013972,2]
[329939518,1718848262432,-500.0,0.00013972,2]
[329939519,1718848262441,-500.0,0.00013972,2]
[329939520,1718848262450,-151.0,0.00013972,2]
[329939521,1718848262459,-960.63,0.00013972,2]
[329939522,1718848262472,-151.0,0.00013972,2]
[329939523,1718848262482,-706.7,0.00013972,2]
[329939524,1718848262491,-500.0,0.00013972,2]
[329939525,1718848262500,-1217.22,0.00013972,2]
[329939526,1718848262509,-184.657556,0.00013972,2]
[329939527,1718848262519,-490.78273411,0.00013972,2]
[329939528,1718848262528,-151.0,0.00013972,2]
[329939529,1718848262537,-500.0,0.00013972,2]
[329939530,1718848262548,-500.0,0.00013972,2]
[329939531,1718848262560,-868.21,0.00013972,2]
[329939532,1718848262574,-1368.21,0.00013972,2]
[329939533,1718848262591,-7034.66,0.00013972,2]
[329939534,1718848262607,-1283.83,0.00013972,2]
[329939535,1718848262621,-500.0,0.00013972,2]
[329939536,1718848262634,-631.1,0.00013972,2]
[329939537,1718848262648,-500.0,0.00013972,2]
[329939538,1718848262662,-500.0,0.00013972,2]
[329939539,1718848262676,-500.0,0.00013972,2]
[329939540,1718848262690,-1470.18,0.00013972,2]
[329939541,1718848262707,-2913.5,0.00013972,2]
[329939542,1718848262721,-151.0,0.00013972,2]
[329939543,1718848262734,-500.0,0.00013972,2]
[329939544,1718848262749,-6081.42,0.00013972,2]
[329939545,1718848262764,-1367.16,0.00013972,2]
[329939546,1718848262779,-500.0,0.00013972,2]
[329939547,1718848262792,-500.0,0.00013972,2]
[329939548,1718848262808,-936.58,0.00013972,2]
[329939549,1718848262818,-1276.15,0.00013972,2]
[329939550,1718848262831,-500.0,0.00013972,2]
[329939551,1718848262844,-151.0,0.00013972,2]
[329939552,1718848262857,-1703.35,0.00013972,2]
[329939553,1718848262872,-151.0,0.00013972,2]
[329939554,1718848262888,-892.33,0.00013972,2]
[329939555,1718848262905,-899.67,0.00013972,2]
[329939556,1718848262917,-500.0,0.00013972,2]
[329939557,1718848262929,-12052.95,0.00013972,2]
[329939558,1718848262940,-806.13,0.00013972,2]
[329939559,1718848262955,-956.66,0.00013972,2]
[329939560,1718848262972,-525.5,0.00013972,2]
[329939561,1718848262986,-1199.86,0.00013972,2]
[329939562,1718848262996,-1263.32,0.00013972,2]
[329939563,1718848263009,-500.0,0.00013972,2]
[329939564,1718848263023,-528.8,0.00013972,2]
[329939565,1718848263036,-2052.19,0.00013972,2]
[329939566,1718848263048,-502.11485254,0.00013972,2]
[329939567,1718848263059,-3151.94,0.00013972,2]
[329939568,1718848263071,-500.0,0.00013972,2]
[329939569,1718848263083,-500.0,0.00013972,2]
[329939570,1718848263095,-43959.83,0.00013972,2]
[329939571,1718848263107,-500.0,0.00013972,2]
[329939572,1718848263120,-1424.81,0.00013972,2]
[329939573,1718848263133,-903.64,0.00013972,2]
[329939574,1718848263147,-674.66,0.00013972,2]
[329939575,1718848263161,-794.14,0.00013972,2]
[329939576,1718848263174,-500.0,0.00013972,2]
[329939577,1718848263186,-500.0,0.00013972,2]
[329939578,1718848263199,-2014.86,0.00013972,2]
[329939579,1718848263218,-2255.17,0.00013972,2]
[329939580,1718848263235,-2801.07,0.00013972,2]
[329939581,1718848263252,-500.0,0.00013972,2]
[329939582,1718848263269,-1178.01,0.00013972,2]
[329939583,1718848263285,-679.67,0.00013972,2]
[329939584,1718848263301,-1030.01,0.00013972,2]
[329939585,1718848263315,-1257.6,0.00013972,2]
[329939586,1718848263330,-4955.7,0.00013972,2]
[329939587,1718848263344,-1718.58,0.00013972,2]
[329939588,1718848263358,-151.0,0.00013972,2]
[329939589,1718848263372,-151.0,0.00013972,2]
[329939590,1718848263386,-500.0,0.00013972,2]
[329939591,1718848263400,-1173.22,0.00013972,2]
[329939592,1718848263413,-3789.0,0.00013972,2]
[329939593,1718848263428,-500.0,0.00013972,2]
[329939594,1718848263443,-500.0,0.00013972,2]
[329939595,1718848263457,-155.754453,0.00013972,2]
[329939596,1718848263474,-500.0,0.00013972,2]
[329939597,1718848263488,-883.38,0.00013972,2]
[329939598,1718848263501,-2775.63,0.00013972,2]
[329939599,1718848263513,-665.4,0.00013972,2]
[329939600,1718848263526,-1470.68,0.00013972,2]
[329939601,1718848263539,-500.0,0.00013972,2]
[329939602,1718848263555,-153.825883,0.00013972,2]
[329939603,1718848263569,-151.0,0.00013972,2]
[329939604,1718848263582,-2097.38,0.00013972,2]
[329939605,1718848263594,-151.0,0.00013972,2]
[329939606,1718848263608,-1132.73,0.00013972,2]
[329939607,1718848263621,-505.32,0.00013972,2]
[329939608,1718848263633,-993.76,0.00013972,2]
[329939609,1718848263645,-570.02,0.00013972,2]
[329939610,1718848263658,-500.0,0.00013972,2]
[329939611,1718848263669,-623.14,0.00013972,2]
[329939612,1718848263682,-2588.09,0.00013972,2]
[329939613,1718848263695,-259.24357445,0.00013972,2]
[329939614,1718848263707,-500.0,0.00013972,2]
[329939615,1718848263720,-500.0,0.00013972,2]
[329939616,1718848263733,-500.0,0.00013972,2]
[329939617,1718848263745,-3063.3,0.00013972,2]
[329939618,1718848263757,-1594.26,0.00013972,2]
[329939619,1718848263776,-1119.29,0.00013972,2]
[329939620,1718848263789,-540.35,0.00013972,2]
[329939621,1718848263803,-500.0,0.00013972,2]
[329939622,1718848263815,-3247.57,0.00013972,2]
[329939623,1718848263827,-1243.21,0.00013972,2]
[329939624,1718848263839,-151.0,0.00013972,2]
[329939625,1718848263852,-612.14,0.00013972,2]
[329939626,1718848263865,-161.209601,0.00013972,2]
[329939627,1718848263876,-2831.68,0.00013972,2]
[329939628,1718848263889,-500.0,0.00013972,2]
[329939629,1718848263901,-2172.92,0.00013972,2]
[329939630,1718848263912,-500.0,0.00013972,2]
[329939631,1718848263925,-151.0,0.00013972,2]
[329939632,1718848263937,-165.37894,0.00013972,2]
[329939633,1718848263949,-1104.26,0.00013972,2]
[329939634,1718848263961,-588.09,0.00013972,2]
[329939635,1718848263972,-772.35,0.00013972,2]
[329939636,1718848263984,-12106.91,0.00013972,2]
[329939637,1718848263996,-527.67,0.00013972,2]
[329939638,1718848264009,-1095.03,0.00013972,2]
[329939639,1718848264020,-151.0,0.00013972,2]
[329939640,1718848264032,-152.145653,0.00013972,2]
[329939641,1718848264044,-852.74,0.00013972,2]
[329939642,1718848264058,-753.32,0.00013972,2]
[329939643,1718848264070,-1579.4,0.00013972,2]
[329939644,1718848264081,-11908.69,0.00013972,2]
[329939645,1718848264093,-581.7,0.00013972,2]
[329939646,1718848264106,-3135.77,0.00013972,2]
[329939647,1718848264118,-2491.37,0.00013972,2]
[329939648,1718848264130,-500.0,0.00013972,2]
[329939649,1718848264142,-1624.59,0.00013972,2]
[329939650,1718848264154,-511.27,0.00013972,2]
[329939651,1718848264165,-651.95,0.00013972,2]
[329939652,1718848264176,-4309.28,0.00013972,2]
[329939653,1718848264188,-500.0,0.00013972,2]
[329939654,1718848264199,-1192.6,0.00013972,2]
[329939655,1718848264213,-500.0,0.00013972,2]
[329939656,1718848264225,-1767.39,0.00013972,2]
[329939657,1718848264237,-3233.09,0.00013972,2]
[329939658,1718848264249,-6788.47,0.00013972,2]
[329939659,1718848264261,-558.56,0.00013972,2]
[329939660,1718848264272,-500.0,0.00013972,2]
[329939661,1718848264284,-944.18,0.00013972,2]
[329939662,1718848264298,-678.82,0.00013972,2]
[329939663,1718848264310,-16351.51,0.00013972,2]
[329939664,1718848264321,-500.0,0.00013972,2]
[329939665,1718848264333,-823.45,0.00013972,2]
[329939666,1718848264344,-1014.1,0.00013972,2]
[329939667,1718848264356,-19959.79,0.00013972,2]
[329939668,1718848264368,-2941.58,0.00013972,2]
[329939669,1718848264379,-823.06,0.00013972,2]
[329939670,1718848264391,-1423.18,0.00013972,2]
[329939671,1718848264403,-785.22,0.00013972,2]
[329939672,1718848264415,-3370.25,0.00013972,2]
[329939673,1718848264426,-2675.02,0.00013972,2]
[329939674,1718848264438,-828.49,0.00013972,2]
[329939675,1718848264450,-1472.64,0.00013972,2]
[329939676,1718848264461,-2493.61,0.00013972,2]
[329939677,1718848264479,-1098.69,0.00013972,2]
[329939678,1718848264491,-500.0,0.00013972,2]
[329939679,1718848264503,-500.0,0.00013972,2]
[329939680,1718848264516,-5216.96,0.00013972,2]
[329939681,1718848264528,-500.0,0.00013972,2]
[329939682,1718848264540,-5174.5,0.00013972,2]
[329939683,1718848264554,-500.0,0.00013972,2]
[329939684,1718848264566,-599.41,0.00013972,2]
[329939685,1718848264578,-500.0,0.00013972,2]
[329939686,1718848264590,-500.0,0.00013972,2]
[329939687,1718848264601,-4827.6,0.00013972,2]
[329939688,1718848264613,-1525.04,0.00013972,2]
[329939689,1718848264624,-500.0,0.00013972,2]
[329939690,1718848264635,-151.0,0.00013972,2]
[329939691,1718848264647,-1207.88,0.00013972,2]
[329939692,1718848264659,-1263.63,0.00013972,2]
[329939693,1718848264670,-500.0,0.00013972,2]
[329939694,1718848264681,-7501.7,0.00013972,2]
[329939695,1718848264692,-7196.73,0.00013972,2]
[329939696,1718848264703,-871.05,0.00013972,2]
[329939697,1718848264715,-4260.69,0.00013972,2]
[329939698,1718848264725,-500.0,0.00013972,2]
[329939699,1718848264737,-848.78,0.00013972,2]
[329939700,1718848264748,-500.0,0.00013972,2]
[329939701,1718848264759,-2138.28,0.00013972,2]
[329939702,1718848264770,-900.94,0.00013972,2]
[329939703,1718848264781,-500.0,0.00013972,2]
[329939704,1718848264793,-500.0,0.00013972,2]
[329939705,1718848264807,-3771.72,0.00013972,2]
[329939706,1718848264818,-13792.13,0.00013972,2]
[329939707,1718848264830,-500.0,0.00013972,2]
[329939708,1718848264841,-500.0,0.00013972,2]
[329939709,1718848264852,-597.45,0.00013972,2]
[329939710,1718848264863,-7131.52,0.00013972,2]
[329939711,1718848264874,-2968.09,0.00013972,2]
[329939712,1718848264885,-4532.44,0.00013972,2]
[329939713,1718848264896,-933.17,0.00013972,2]
[329939714,1718848264907,-500.0,0.00013972,2]
[329939715,1718848264918,-961.88,0.00013972,2]
[329939716,1718848264929,-9076.31,0.00013972,2]
[329939717,1718848264940,-1704.87,0.00013972,2]
[329939718,1718848264951,-632.31,0.00013972,2]
[329939719,1718848264962,-25529.38,0.00013972,2]
[329939720,1718848264973,-500.0,0.00013972,2]
[329939721,1718848264986,-882.72,0.00013972,2]
[329939722,1718848264998,-2792.14,0.00013972,2]
[329939723,1718848265009,-500.0,0.00013972,2]
[329939724,1718848265021,-500.0,0.00013972,2]
[329939725,1718848265032,-3895.83,0.00013972,2]
[329939726,1718848265043,-2159.36,0.00013972,2]
[329939727,1718848265059,-153.837192,0.00013972,2]
[329939728,1718848265070,-8379.52,0.00013972,2]
[329939729,1718848265082,-500.0,0.00013972,2]
[329939730,1718848265094,-500.0,0.00013972,2]
[329939731,1718848265105,-4778.08,0.00013972,2]
[329939732,1718848265117,-1501.28,0.00013972,2]
[329939733,1718848265128,-1370.04,0.00013972,2]
[329939734,1718848265141,-151.0,0.00013972,2]
[329939735,1718848265153,-1143.61,0.00013972,2]
[329939736,1718848265167,-153.592054,0.00013972,2]
[329939737,1718848265180,-500.0,0.00013972,2]
[329939738,1718848265192,-571.26,0.00013972,2]
[329939739,1718848265204,-710.26,0.00013972,2]
[329939740,1718848265215,-4035.95,0.00013972,2]
[329939741,1718848265226,-1349.84,0.00013972,2]
[329939742,1718848265237,-2311.84,0.00013972,2]
[329939743,1718848265251,-517.98,0.00013972,2]
[329939744,1718848265263,-2612.49,0.00013972,2]
[329939745,1718848265275,-958.24,0.00013972,2]
[329939746,1718848265287,-1939.46,0.00013972,2]
[329939747,1718848265301,-500.0,0.00013972,2]
[329939748,1718848265312,-13433.93,0.00013972,2]
[329939749,1718848265323,-2174.3,0.00013972,2]
[329939750,1718848265335,-1297.36,0.00013972,2]
[329939751,1718848265346,-500.0,0.00013972,2]
[329939752,1718848265357,-3176.7,0.00013972,2]
[329939753,1718848265368,-500.0,0.00013972,2]
[329939754,1718848265380,-1059.88,0.00013972,2]
[329939755,1718848265393,-730.21,0.00013972,2]